Cogmind - Beta 9.4 @@@ ROGUE MODE // 2020.02.03 @ 17:14:36 Player: Zyalin Result: Destroyed by as-92050 with Assembled Rifle Performance ------------- Evolutions (0) 0 Regions Visited (2) 400 Robots Destroyed (18) 90 Value Destroyed (384) 384 Prototype IDs (0) 0 Alien Tech Used (0) 0 Bonus (0) 0 TOTAL SCORE: 874 Bonus ------- None Cogmind --------- Core Integrity 0/250 Matter 300/300 Energy 100/100 System Corruption 0% Temperature Cool (0) Movement Core (50) Location -10/Mines Parts ------- > --- POWER (1) -------- (None) > --- PROPULSION (2) --- (None) > --- UTILITY (2) ------ (None) > --- WEAPON (2) ------- (None) > --- INVENTORY (4) ---- Ion Engine Small Laser Small Laser Mining Claw Peak State ------------ > --- POWER ------------ Ion Engine > --- PROPULSION ------- Light Treads Light Treads > --- UTILITY ---------- Heat Sink Small Storage Unit > --- WEAPON ----------- Small Laser Assault Rifle > --- INVENTORY -------- Ion Engine Mining Claw [Rating: 7] Favorites ----------- Power Ion Engine Engine Ion Engine Propulsion Light Treads Treads Light Treads Utility Small Storage Unit Device Heat Sink Storage Small Storage Unit Weapon Assault Rifle Energy Gun Medium Laser Ballistic Gun Assault Rifle Slashing Weapon Mining Claw Build | -11 -10 -10 ------- Run | Scr Mat Min Slots Evolved . | . . . Power . | . . . Propulsion . | . . . Utility . | . . . Weapon . | . . . Parts Attached 13 | 6 4 3 Power 1 | 1 . . Engine 1 | 1 . . Core . | . . . Reactor . | . . . Propulsion 2 | 2 . . Treads 2 | 2 . . Leg . | . . . Wheel . | . . . Hover . | . . . Flight . | . . . Utility 2 | 1 1 . Device 1 | . 1 . Storage 1 | 1 . . Processor . | . . . Hackware . | . . . Protection . | . . . Artifact . | . . . Weapon 8 | 2 3 3 Energy Gun 6 | 1 3 2 Energy Cannon . | . . . Ballistic Gun 1 | 1 . . Ballistic Cannon . | . . . Launcher . | . . . Special Weapon . | . . . Impact Weapon . | . . . Slashing Weapon 1 | . . 1 Piercing Weapon . | . . . Special Melee Weapon . | . . . Unidentified Prototypes . | . . . Parts Lost 5 | . 2 3 Power . | . . . Propulsion 2 | . . 2 Utility . | . . . Weapon 3 | . 2 1 Highest Loss Streak 2 | . 1 2 Average Slot Usage (%) 93 | . 92 94 Engine 13 | . 14 13 Treads 26 | . 28 25 Device 10 | . 7 13 Storage 13 | . 14 13 Energy Gun 13 | . 14 12 Ballistic Gun 13 | . 14 12 Naked Turns 23 | . . 23 Heaviest Build 14 | 13 14 14 Greatest Support 40 | 40 40 40 Greatest Overweight (x) . | . . . Average Overweight (x) . | . . . Largest Inventory Capacity 6 | 6 6 6 Average Capacity 5 | 5 6 5 Most Carried 5 | 2 5 5 Average Carried 3 | 1 3 4 Final Capacity 6 | 6 6 4 Final Carried 5 | 2 5 4 Class Distribution -------------------- 100% | Mutant Dominant Class ---------------- Mutant | -10/Materials Mutant | -10/Mines Resources | -11 -10 -10 ----------- Run | Scr Mat Min Matter Collected 496 | 252 182 62 Remotely . | . . . Salvage Created 601 | . 489 112 Parts 36 | . 34 2 Haulers Intercepted . | . . . Recyclers Shooed 1 | . 1 . Parts Field Recycled . | . . . Retrieved Matter . | . . . Parts Self-Destructed . | . . . Prevented . | . . . Kills | -11 -10 -10 ------- Run | Scr Mat Min Combat Hostiles Destroyed 15 | . 10 5 Melee 1 | . . 1 Guns 14 | . 10 4 Classes Destroyed 4 | . 3 1 Worker 2 | . 1 1 Recycler 1 | . 1 . Grunt 10 | . 10 . Assembled 5 | . . 5 Best Kill Streak 3 | . 3 2 Combat Bots Only 2 | . 2 1 Max Kills in Single Turn 1 | . 1 1 Gunslinging . | . . . Exploded . | . . . Melee 1 | . . 1 Uniques/NPCs Destroyed . | . . . Combat | -11 -10 -10 -------- Run | Scr Mat Min Damage Taken 932 | . 388 544 Core 252 | . 70 182 Absorbed by Shields . | . . . Core Remaining (%) 100 | 100 . . Volleys Fired 68 | 2 46 20 Largest 2 | 2 2 2 Hottest 90 | 60 70 90 Shots Fired 133 | 4 89 40 Gun 133 | 4 89 40 Cannon . | . . . Launcher . | . . . Special . | . . . Kinetic 63 | 2 46 15 Thermal 61 | . 36 25 Explosive . | . . . Electromagnetic 9 | 2 7 . Robot Hit Streak 10 | 3 10 9 Robot Miss Streak 4 | 1 3 4 Penetration Max . | . . . Secondary Targets 2 | . 2 . Max Gunslinging Chain 1 | . 1 . Shots Hit Robots 95 | 3 69 23 Core Hits 38 | . 26 12 Critical Hits . | . . . Critical Kills . | . . . Critical Parts Destroyed . | . . . Melee Attacks 10 | . . 10 Impact . | . . . Slashing 10 | . . 10 Piercing . | . . . Sneak Attacks . | . . . Combat Hostiles . | . . . Follow-up Attacks . | . . . Damage Inflicted 1123 | 40 844 239 Guns 1078 | 40 844 194 Cannons . | . . . Explosions . | . . . Melee . | . . . Ramming 45 | . . 45 Kinetic 596 | 28 461 107 Thermal 433 | . 346 87 Explosive . | . . . Electromagnetic 49 | 12 37 . Impact . | . . . Slashing . | . . . Piercing . | . . . Highest Corruption . | . . . Average Corruption . | . . . Corruption Purged . | . . . Overload Shots . | . . . Overflow Damage . | . . . Projectiles . | . . . Explosions . | . . . Melee . | . . . Knockbacks . | . . . Impact . | . . . Kinetic . | . . . Secondary . | . . . Self-Inflicted Damage 21 | . . 21 Shots . | . . . Rammed 6 | . 1 5 Targets Rammed 6 | . 1 5 Kicked . | . . . Crushed . | . . . Highest Temperature 42 | . 42 13 Average Temperature 17 | . 18 9 Received Heat Transfer 422 | . 222 200 Siege Activations . | . . . Robots Corrupted . | . . . Combat Hostiles . | . . . Parts Fried . | . . . Impact Corruptions . | . . . Robots Melted . | . . . Combat Hostiles . | . . . Parts Melted 1 | . 1 . Heat Transferred 1069 | . 822 247 Parts Sabotaged . | . . . Parts Stolen . | . . . Parts Stripped . | . . . Power Chain Reactions . | . . . Missiles Intercepted . | . . . Alert | -11 -10 -10 ------- Run | Scr Mat Min Peak Influence 282 | . 282 61 Average Influence 82 | . 140 33 Maximum Alert Level 1 | . 1 . Low Security (%) 82 | 100 63 100 Level 1 17 | . 36 . Level 2 . | . . . Level 3 . | . . . Level 4 . | . . . Level 5 . | . . . High Security . | . . . Max Security . | . . . Squads Dispatched 3 | . 3 . Investigation 1 | . 1 . Extermination . | . . . Reinforcement 2 | . 2 . Assault . | . . . Garrison . | . . . Intercept . | . . . Construction Impeded . | . . . Haulers Reinforced . | . . . Stealth | -11 -10 -10 --------- Run | Scr Mat Min Distress Signals 1 | . 1 . Communications Jammed . | . . . Distress Signals . | . . . Times Spotted 31 | . 15 16 Peak Tracking Total 7 | . 4 7 Tactical Retreats 2 | . . 2 Traps | -11 -10 -10 ------- Run | Scr Mat Min Traps Triggered 1 | . 1 . Indirectly . | . . . Trap Hack Attempts . | . . . Triggered . | . . . Disarmed . | . . . Reprogrammed . | . . . Reused . | . . . Traps Extracted . | . . . Installed . | . . . Triggered . | . . . Machines | -11 -10 -10 ---------- Run | Scr Mat Min Machines Disabled 1 | . . 1 Max in Single Turn 1 | . . 1 Machines Sabotaged . | . . . Garrisons Compromised . | . . . Overloaded Fab Kills . | . . . Fab Network Shutdowns . | . . . Hacking | -11 -10 -10 --------- Run | Scr Mat Min Machines Accessed 2 | . 2 . Terminals 2 | . 2 . Fabricators . | . . . Repair Stations . | . . . Recycling Units . | . . . Scanalyzers . | . . . Garrison Access . | . . . Total Hacks 5 | . 5 . Successful 3 | . 3 . Failed 2 | . 2 . Catastrophic . | . . . Database Lockouts . | . . . Manual 5 | . 5 . Terminals 5 | . 5 . Fabricators . | . . . Repair Stations . | . . . Recycling Units . | . . . Scanalyzers . | . . . Garrison Access . | . . . Terminal Hacks 1 | . 1 . Branch Access Points 1 | . 1 . Fabricator Hacks . | . . . Repair Station Hacks . | . . . Recycling Unit Hacks . | . . . Scanalyzer . | . . . Garrison Access Hacks . | . . . Unauthorized Hacks 4 | . 4 . Terminals 2 | . 2 . Track 1 | . 1 . Botnet 1 | . 1 . Fabricators . | . . . Repair Stations . | . . . Recycling Units . | . . . Scanalyzers . | . . . Garrison Access . | . . . Data Cores Recovered . | . . . Used . | . . . Hacking Detections 2 | . 2 . Full Trace Events . | . . . Feedback Events . | . . . Feedback Blocked . | . . . Robot Schematics Acquired . | . . . Robots Built . | . . . Matter . | . . . Time . | . . . Total Robot Build Rating . | . . . Part Schematics Acquired . | . . . Parts Built . | . . . Matter . | . . . Time . | . . . Total Part Build Rating . | . . . Parts Repaired . | . . . Time . | . . . Parts Recycled . | . . . Recycled Matter . | . . . Retrieved Matter . | . . . Retrieved Components . | . . . Parts Scanalyzed . | . . . Part Schematics Acquired . | . . . Parts Damaged . | . . . Bothacking | -11 -10 -10 ------------ Run | Scr Mat Min Used RIF Installer . | . . . Robots Hacked . | . . . Non-combat . | . . . Combat . | . . . Robot Hacks Applied . | . . . Relay Couplers Released . | . . . Robots Rewired . | . . . Allies Hacked . | . . . Hacks Repelled . | . . . Allies | -11 -10 -10 -------- Run | Scr Mat Min Total Allies . | . . . Largest Group . | . . . Highest-Rated Group . | . . . Highest-Rated Ally . | . . . Total Orders . | . . . Ally Attacks . | . . . Total Damage . | . . . Kills . | . . . Allies Corrupted . | . . . Allies Melted . | . . . Intel | -11 -10 -10 ------- Run | Scr Mat Min Robot Analysis Total . | . . . Derelict Logs Recovered 1 | . . 1 Drone Launches . | . . . Drone Recoveries . | . . . Exploration | -11 -10 -10 ------------- Run | Scr Mat Min Turns Passed 1077 | 84 522 471 Spaces Moved 489 | 43 231 215 Core 38 | 2 . 36 Treads 451 | 41 231 179 Legs . | . . . Wheels . | . . . Hover . | . . . Flight . | . . . Fastest Speed 50 | 50 160 50 Average Speed 151 | 154 160 141 Slowest Speed 160 | 160 160 160 Overloaded Moves . | . . . Propulsion Burnouts . | . . . Robots Hopped . | . . . Cave-ins Triggered . | . . . Exploration Rate (%) 29 | 3 39 45 Regions Visited 2 Branch Regions 1 Pre-discovered Areas 1 | . . 1 Known Exits Taken 1 | . 1 . Unknown Exits Taken 1 | 1 . . Scrap Searched . | . . . Spaces Dug 5 | . . 5 Terrain Destroyed 5 | . . 5 Melee 5 | . . 5 Projectile . | . . . AOE . | . . . Actions | -11 -10 -10 --------- Run | Scr Mat Min Total 666 | 54 292 320 Wait 77 | 2 8 67 Move 487 | 42 230 215 Hop . | . . . Pick Up 5 | 2 3 . Fast Attach 8 | 6 2 . Attach 2 | . 1 1 Detach . | . . . Swap 3 | . 1 2 Drop . | . . . Fire 68 | 2 46 20 Melee 10 | . . 10 Ram 5 | . . 5 Kick . | . . . Crush 1 | . 1 . Escape Stasis . | . . . Rewire . | . . . Trap . | . . . Miscellaneous . | . . . Route ------- -11/Scrapyard -10/Materials (discovered 3 exits: [*Mat] / *Min x2) -10/Mines History --------- Turn | Location | Event 30 | -11/Scrapyard | Discovered new exit (range 16) 85 | -11/Scrapyard | Entered Materials 233 | -10/Materials | Discovered new exit (range 12) 305 | -10/Materials | Build established: Mutant 312 | -10/Materials | Discovered new exit (range 15) 481 | -10/Materials | Identified exit to Mines 607 | -10/Materials | Entered Mines 661 | -10/Mines | Assembled infested the area 666 | -10/Mines | Assisted by a Guerilla fighting off Assembled 687 | -10/Mines | Met a Derelict bent on vengeance 942 | -10/Mines | Core integrity fell below 50% 1055 | -10/Mines | Released all parts (5) 1060 | -10/Mines | Learned location of Zion (-6) 1071 | -10/Mines | Core integrity fell below 20% 1078 | -10/Mines | Destroyed by as-92050 with Assembled Rifle Last Messages --------------- 00954_ as-07710 destroyed. 01014_ Assault Rifle destroyed. 01019_ Lgt. Treads destroyed. 01022_ as-40930 destroyed. 01025_ Acquired 10 matter. 01038_ Acquired 17 matter. 01053_ Lgt. Treads destroyed. 01055_ Released Heat Sink. 01055_ Released Sml. Storage Unit. 01055_ Released Ion Engine. 01055_ Released Med. Laser. 01055_ Released Sml. Laser. 01060_ Acquired derelict log, extracted data. World map updated: -6/Zion. 01066_ Slammed into K-01 Serf. 01066_ K-01 Serf destroyed. 01067_ Knocked back. 01068_ Slammed into as-14467. 01070_ as-14467 destroyed. 01073_ Slammed into as-92050. Map ----- +----------------------------------------------------+ | | | | | | | | | | | | | | | | | | | | | | | | | | | | | | | | | | | | | | | ?????????????????????????????????????????????????? | | ?????????????????????????????????????????????????? | | ?????????????????????????????????????????????????? | | ?????????????????????????????????????????????????? | | ??????????????????????#######????????????????????? | | ??????????????????????? % ##???????????????????? | | ????????????????????????#@ ##??????????????????? | | ????????????????????????#% ##?????????????????? | | ????????????????????????## ### ##???????????? | | ?????????????????????????## % a =#???????????? | | ??????????????????????????##a""" |% %! #????????? | | ???????????????????????????#a""" ### #????????? | | ????????????????????????####!""" ##????????????? | | ????????????????????????#=%=% ##?????????????? | | ????????????????????????#%##= ###??????????????? | | ????????????????????????# ## ##????????????????? | | ????????????############# ### #?????????????????? | | ????????????# %=%=%%%%#?? #?????????????????? | | ????????????# ########### #?? #?????????????????? | | ?????######## #?????????# #?? ?????????????????? | | ?????# #?????????# #??####????????????????? | | ???### ########?????????# #??????????????????????? | | ???# #????????????????# #??????????????????????? | | ???# ###????????????????# #??????????????????????? | | ???# #??????????????????# #??????????????????????? | | ???# #?????????????????? ??????????????????????? | | ???# #?????????????????? ??????????????????????? | | ???#*#??###?????????????###??????????????????????? | | ??##!### ##?????????????????????????????????????? | | ?##[![ ### ?????????????????????????????????? | | ## ?????????????????????????????? | +----------------------------------------------------+ Best States ------------- Heat Dissipation 35 Energy Generation 10 Energy Capacity 250 Matter Stores 300 Matter Capacity 300 Sight Range 16 Terrain Scan Density 10 Evasion (%) 50 Recoil Reduction 2 Item Schematics ----------------- None Robot Schematics ------------------ None Fabricated ------------ Nothing Alien Tech Used ----------------- None Achievements -------------- None Challenges ------------ None Game ------ Seed IonWaveWarhead Manual? 0 Play Time 00:07:08 Cumulative 366.7 hours Start 2020.02.03 @ 17:09:21 End 2020.02.03 @ 17:14:36 Sessions 1 Manual Loads 0 Difficulty Rogue Special Mode None Game No. 229 Rogue 228 Adventurer 0 Explorer 1 Win Type - Total 35 Types 26/2/4/2/1/0/0 Lore% 90 Gallery% 92 Achievement% 86 Wizard Run 0 Options --------- ASCII 0 Keyboard 0 Movement Numpad Keybinds 0 Fullscreen 1 Font 18/X11Bold Map View 76x50 Tactical HUD 1 Map Filters NONE Filters NONE Steam 1 RUN: bb867694-a357-47d3-95bc-0518e25fd512